[Event "2nd Serbia Open Masters 2022"]
[Site "Novi Sad"]
[Date "2022.06.29"]
[Round "2.11"]
[White "Damjanovic, Vuk"]
[Black "Kadric, Denis"]
[Result "1/2-1/2"]
[ECO "B07"]
[WhiteElo "2393"]
[BlackElo "2576"]
[Annotator "TA"]
[PlyCount "39"]
[EventDate "2022.06.28"]
[EventType "swiss"]
[EventCountry "SRB"]
[SourceTitle "playchess.com"]
[Source "ChessBase"]
[SourceQuality "1"]
[TimeControl "40/5400+30:900+30"]

{[%evp 9,39,34,44,30,27,27,39,9,28,27,37,33,18,14,20,14,21,-85,-39,-102,-34,-89,-71,-81,0,0,0,0,0,0,0,0]} 1. d4 {[%emt 0:03:45]} d6 {[%emt 0:00:05]} 2. Nc3 {[%emt 0:00:31]} Nd7 {[%emt 0:01:02]} 3. e4 {[%emt 0:00:35]} e5 {[%emt 0:00:29]} 4. Nge2 {[%emt 0:01:28]} Ngf6 {[%emt 0:00:52]} 5. h3 {[%emt 0:01:26]} h5 {[%emt 0:00:21]} 6. Be3 {[%emt 0:01:37] B07: Pirc Defence: Miscellaneous Systems.} c6 {[%emt 0:00:04]} 7. a4 {[%emt 0:02:10] [#] Inhibits b5.} b6 $146 {[%emt 0:00:28]} ({Predecessor:} 7... Qc7 8. Qd2 Be7 9. g3 b6 10. Bg2 Bb7 11. O-O O-O 12. f4 exd4 13. Nxd4 d5 {½-½ (36) Silva,O (2341)-Koelle,T (2275) Chess.com INT 2020}) 8. Rg1 {[%emt 0:00:49] White is slightly better.} h4 {[%emt 0:03:03]} 9. g4 {[%emt 0:02:10]} hxg3 $1 {[%emt 0:00:07]} 10. Nxg3 {[%emt 0:00:08]} Qc7 {[%emt 0:06:40]} 11. f4 {[%emt 0:07:30]} a6 {[%emt 0:02:07]} 12. Qd2 {[%emt 0:07:55]} Bb7 {[%emt 0:02:15]} 13. Rd1 {[%emt 0:04:35]} (13. Nf5 $11 {keeps the balance.}) 13... b5 {[%emt 0:10:38]} ({Better is} 13... exd4 $17 14. Bxd4 (14. Qxd4 O-O-O $15) 14... O-O-O) 14. Qf2 {[%emt 0:19:44]} (14. Bg2 $15) 14... b4 {[%emt 0:05:16]} (14... exd4 $17 15. Bxd4 O-O-O) 15. Nce2 {[%emt 0:00:48]} (15. dxe5 $1 $15 dxe5 16. Nb1) 15... exd4 $17 {[%emt 0:04:36]} 16. Nxd4 {[%emt 0:00:35][%cal Be2d4,Bd4f3,Bf3g5,Bg5e4][%mdl 32]} c5 {[%emt 0:00:03]} (16... Nc5 $17 17. Qg2 Nxa4) 17. Nf3 $1 $11 {[%emt 0:00:17] The position is equal.} Nxe4 {[%emt 0:15:46]} 18. Nxe4 {[%emt 0:00:09]} Bxe4 {[%emt 0:00:02]} 19. Ng5 {[%emt 0:00:12]} d5 {[%emt 0:00:40] Threatens to win with ...Nf6.} 20. Nxe4 {[%emt 0:07:16] Weighted Error Value: White=0.26 (precise) /Black=0.14 (very precise)} 1/2-1/2

[Event "2nd Serbia Open Masters 2022"]
[Site "Novi Sad"]
[Date "2022.06.29"]
[Round "2.12"]
[White "Mendonca, Leon Luke"]
[Black "Erdogmus, Yagiz Kaan"]
[Result "0-1"]
[ECO "E60"]
[WhiteElo "2551"]
[BlackElo "2383"]
[Annotator "TA"]
[PlyCount "78"]
[EventDate "2022.06.28"]
[EventType "swiss"]
[EventCountry "SRB"]
[SourceTitle "playchess.com"]
[Source "ChessBase"]
[SourceQuality "1"]
[TimeControl "40/5400+30:900+30"]

{[%evp 9,78,20,20,19,20,26,17,0,34,27,32,19,21,16,72,64,72,38,66,66,66,56,63,60,88,72,118,73,127,115,170,78,123,82,77,81,73,0,0,0,0,0,0,0,0,0,93,0,0,0,69,0,157,0,0,0,0,0,0,0,210,0,2168,-643,-608,-685,-662,-658,-500,-1775,-1666]} 1. d4 {[%emt 0:00:41]} Nf6 {[%emt 0:00:35]} 2. c4 {[%emt 1:30:49]} g6 {[%emt 0:00:44]} 3. h4 {[%emt 0:00:29]} c6 {[%emt 0:11:33]} 4. Nc3 {[%emt 0:00:30]} d5 {[%emt 0:01:57]} 5. cxd5 {[%emt 0:00:38]} cxd5 {[%emt 0:00:33]} 6. Bf4 {[%emt 0:00:28] E60: King's Indian: Unusual lines and Fianchetto Variation without Nc3.} Bg7 {[%emt 0:03:08]} 7. e3 {[%emt 0:00:15]} Nc6 {[%emt 0:03:05]} 8. Be2 {[%emt 0:01:43] The position is equal.} h5 {[%emt 0:03:49]} 9. Nf3 {[%emt 0:17:50]} O-O {[%emt 0:04:29] [#]} 10. Ng5 $146 {[%emt 0:15:57]} ({Predecessor:} 10. Qb3 Na5 11. Qb4 Bg4 12. O-O Rc8 13. Rfc1 Ne4 14. Nxe4 Rxc1+ 15. Rxc1 dxe4 16. Bc7 {0-1 (54) Paravyan,D (2647)-Matinian,N (2470) Chess.com INT 2021}) 10... a6 {[%emt 0:16:10]} 11. O-O {[%emt 0:07:41]} e6 {[%emt 0:07:54]} (11... Re8 $11 {remains equal.}) 12. Rc1 $16 {[%emt 0:05:41]} Re8 {[%emt 0:17:14]} 13. Na4 {[%emt 0:04:35]} Bf8 {[%emt 0:03:29]} 14. Qb3 {[%emt 0:04:01]} Bd6 {[%emt 0:02:50]} 15. Bxd6 {[%emt 0:05:07]} Qxd6 {[%emt 0:00:02]} 16. Rfd1 {[%emt 0:14:35]} Nd7 {[%emt 0:08:10]} 17. Qc3 {[%emt 0:06:45]} Rb8 {[%emt 0:01:47]} (17... Nf6 $142) 18. Rd2 {[%emt 0:02:20][%cal Oe2a6]} Nb4 {[%emt 0:06:47]} (18... Ne7 $142) 19. b3 {[%emt 0:03:14]} Nc6 {[%emt 0:01:56] [#]} (19... Nf6 $16 {was worth a try.}) 20. g3 {[%emt 0:01:49]} (20. Bxa6 $1 $18 {[%mdl 512] is more deadly.} b6 21. Bb5 (21. Qxc6 Qxc6 22. Rxc6 Bxa6 $16)) 20... Qa3 {[%emt 0:02:51]} 21. Qb2 {[%emt 0:04:01]} Qd6 {[%emt 0:01:57]} 22. e4 {[%emt 0:00:55]} f6 {[%emt 0:00:49] Inhibits e5.} 23. Nxe6 {[%emt 0:01:46]} Rxe6 $11 {[%emt 0:00:21]} (23... Qxe6 $2 24. exd5 Qd6 25. dxc6 bxc6 26. Qc2 $18) 24. exd5 {[%emt 0:00:08]} Rxe2 {[%emt 0:00:14]} 25. Rxe2 {[%emt 0:00:32]} Qxd5 {[%emt 0:00:12]} 26. Nc3 {[%emt 0:00:23]} Qf7 {[%emt 0:01:09]} (26... Qxd4 27. Rd1 Qg4 28. Ne4 $16) 27. Ne4 {[%emt 0:01:02]} Qd5 {[%emt 0:00:17] Inhibits Nd6.} (27... Nb6 $11 {keeps the balance.}) 28. Nc3 {[%emt 0:00:24]} (28. Rc4 $16) 28... Qf7 $1 {[%emt 0:00:24]} (28... Qxd4 29. Rd1 Qg4 30. Ne4 $16) 29. Ne4 {[%emt 0:00:30]} Qd5 {[%emt 0:00:04] Against Nd6} (29... Nb6 $11) 30. Rd1 {[%emt 0:00:25]} (30. Rc4 $14) 30... Nce5 $2 {[%emt 0:02:23]} ({Better is} 30... f5 $11 31. Nc3 Qd6) 31. Qc1 $2 {[%emt 0:00:44]} (31. Qa3 $1 $16 {Strongly threatening Nc3.} Nf3+ 32. Kg2) 31... Nf3+ {[%emt 0:00:00]} 32. Kh1 {[%emt 0:00:30] Threatens to win with Qc7.} Qf5 {[%emt 0:00:15][%cal Rf5h3]} (32... Nxd4 $2 33. Qe3 Nf5 34. Rxd5 $18) 33. Kg2 {[%emt 0:00:24] Against Qh3+. Black must now prevent Qc4+.} Qg4 $36 {[%emt 0:00:38][%mdl 2048] ...Nxh4+ is the strong threat. Black has some pressure.} 34. Rh1 {[%emt 0:00:36] Really sharp! Active counter play!} b6 $2 {[%emt 0:00:33]} (34... b5 $11 35. Nd6 Nxd4 36. Re8+ Nf8 37. Nxc8 (37. Rxc8 $2 Qf3+ 38. Kh3 Ne2 $19) 37... Qf3+ 38. Kh3 (38. Kg1 Ne2+ 39. Rxe2 Qxe2 $11) 38... Qf5+ 39. Kg2 Qf3+ 40. Kh3 (40. Kg1 Ne2+ 41. Rxe2 Qxe2 $11) 40... Qf5+ 41. Kg2 Qf3+) 35. Qc7 $2 {[%emt 0:00:31]} (35. Qc4+ $18 Kh8 36. Nd6) 35... Nxd4 $2 {[%emt 0:00:30][%mdl 8192] [#]} (35... Nxh4+ $11 36. Kf1 Nf5) 36. Qd8+ $4 {[%emt 0:00:28][%mdl 8192] [#]} (36. Nxf6+ $1 $18 {[%mdl 512]} Kg7 37. Nxg4 Nxe2 38. Ne5) 36... Kg7 $1 $19 {[%emt 0:00:21] Black is clearly winning.} 37. Qe7+ {[%emt 0:00:30]} Kh6 {[%emt 0:00:19]} 38. Re3 {[%emt 0:00:31]} Nf5 {[%emt 0:01:24]} 39. Nd6 {[%emt 0:00:30]} (39. f3 $142 Nxe3+ 40. Kf2) 39... Nxe7 {[%emt 0:00:14] Weighted Error Value: White=0.60/Black=0.40} 0-1

[Event "2nd Serbia Open Masters 2022"]
[Site "Novi Sad"]
[Date "2022.06.29"]
[Round "2.13"]
[White "Beydullayeva, Govhar"]
[Black "Basso, Pier Luigi"]
[Result "1/2-1/2"]
[ECO "D37"]
[WhiteElo "2384"]
[BlackElo "2570"]
[Annotator "TA"]
[PlyCount "120"]
[EventDate "2022.06.28"]
[EventType "swiss"]
[EventCountry "SRB"]
[SourceTitle "playchess.com"]
[Source "ChessBase"]
[SourceQuality "1"]
[TimeControl "40/5400+30:900+30"]

{[%evp 9,120,31,31,29,29,29,31,29,34,25,36,33,35,34,27,29,34,18,18,27,47,33,80,70,70,63,140,147,160,144,202,206,191,196,214,206,206,209,312,320,281,293,270,170,191,187,235,226,244,255,253,245,264,242,261,262,254,250,297,318,245,145,125,129,167,174,145,148,158,156,161,96,154,58,197,125,109,110,228,229,224,221,509,462,1029,992,737,682,1795,1807,1624,1519,1254,0,0,0,0,0,0,0,0,0,0,0,0,0,0,0,29999,0,0,0,0]} 1. d4 {[%emt 0:03:36]} d5 {[%emt 0:08:51]} 2. c4 {[%emt 0:00:09][%cal Bc2c4,Bc4c5][%mdl 32]} e6 {[%emt 0:03:27]} 3. Nc3 {[%emt 0:00:07]} h6 {[%emt 0:00:04]} 4. Nf3 {[%emt 0:00:22]} Nf6 {[%emt 0:04:43]} 5. Bf4 {[%emt 0:01:47]} Bd6 {[%emt 0:00:24]} 6. Bxd6 {[%emt 0:00:22] D37: Queen's Gambit Declined: 5 Bf4.} Qxd6 $1 {[%emt 0:00:10] 6...Qxd6 scores better than 6...cxd6.} 7. c5 {[%emt 0:01:17]} Qe7 {[%emt 0:00:19]} 8. e3 {[%emt 0:00:23] White is slightly better.} c6 {[%emt 0:04:33]} 9. Be2 {[%emt 0:02:54]} Nbd7 {[%emt 0:00:40]} 10. b4 {[%emt 0:01:15]} a6 {[%emt 0:01:37] [#]} 11. a4 $146 {[%emt 0:02:44]} ({Predecessor:} 11. O-O O-O 12. Ne1 e5 13. a4 Re8 14. Nc2 exd4 15. exd4 Ne4 16. Nxe4 Qxe4 {1-0 (46) Barros,R (2105)-De la Hoz,R Barranquilla 1999}) 11... e5 {[%emt 0:00:36]} 12. O-O {[%emt 0:01:03]} O-O {[%emt 0:10:59]} 13. Qc2 {[%emt 0:05:19]} e4 {[%emt 0:00:38]} 14. Nd2 {[%emt 0:00:07]} Nh7 {[%emt 0:00:35]} 15. b5 {[%emt 0:01:28]} Qh4 {[%emt 0:11:29]} (15... f5 $14 {was preferrable.}) 16. bxc6 {[%emt 0:06:22]} bxc6 {[%emt 0:03:38]} 17. f3 {[%emt 0:00:56][%cal Rf3e4]} exf3 {[%emt 0:03:30]} (17... f5 $14) 18. Nxf3 $16 {[%emt 0:02:19]} Qd8 {[%emt 0:03:23]} 19. e4 {[%emt 0:02:15] 0x0.0017640b890edp-1022s more active pieces.} dxe4 {[%emt 0:01:39]} (19... Nhf6 $16 20. exd5 cxd5) 20. Nxe4 $18 {[%emt 0:00:48]} (20. Qxe4 $6 Qc7 $16) 20... Ndf6 {[%emt 0:00:58]} 21. Nd6 {[%emt 0:03:56]} Ne8 {[%emt 0:05:49]} 22. Nxc8 {[%emt 0:09:24]} Qxc8 {[%emt 0:00:40]} 23. Ne5 {[%emt 0:00:17][%cal Oe5f7] Strongly threatening Nxf7!} Nhf6 {[%emt 0:04:12]} (23... Nef6 $142 24. Bc4 Nd5 25. Rxf7 Rxf7) 24. Bf3 {[%emt 0:06:09]} Nd5 {[%emt 0:00:06]} 25. Bxd5 {[%emt 0:01:21]} cxd5 {[%emt 0:00:05]} 26. Rab1 {[%emt 0:01:28] Black must now prevent c6.} Nf6 {[%emt 0:06:44]} 27. Qf5 {[%emt 0:08:02] Against Ng4} Qxf5 {[%emt 0:05:04]} (27... Ra7 {was necessary.} 28. Rb6 a5 29. Rxf6 gxf6 30. Qxf6 Qe6) 28. Rxf5 {[%emt 0:00:01]} a5 {[%emt 0:00:25]} 29. Nc6 {[%emt 0:04:51] Inhibits Ra7.} Rfe8 {[%emt 0:01:01]} 30. Re5 {[%emt 0:00:14]} Kf8 {[%emt 0:01:01]} 31. Rxe8+ {[%emt 0:05:39]} Kxe8 {[%emt 0:00:12][%mdl 4096] Endgame KRN-KRN} 32. Rb7 {[%emt 0:08:13]} Nd7 {[%emt 0:10:29]} 33. Kf2 {[%emt 0:06:07]} f5 {[%emt 0:00:30]} 34. Kf3 {[%emt 0:04:09]} g5 {[%emt 0:00:05]} 35. Rb5 {[%emt 0:01:31]} (35. g3 $18) 35... Ra6 $16 {[%emt 0:01:40]} 36. Nxa5 {[%emt 0:05:15]} Nf6 {[%emt 0:00:06]} 37. Nb7 $1 {[%emt 0:01:21]} Rxa4 {[%emt 0:00:24]} 38. Nd6+ {[%emt 0:00:08]} Kd7 {[%emt 0:00:26]} 39. Nxf5 {[%emt 0:00:42]} Ra3+ {[%emt 0:00:31]} 40. Ne3 {[%emt 0:00:00]} (40. Ke2 $1 $18) 40... h5 {[%emt 0:00:00]} (40... Ne4 $142) 41. h3 {[%emt 0:06:57]} (41. Rb7+ $1 $16 Kd8 42. h3) 41... Rd3 {[%emt 0:05:43] [#]} (41... Ne4 $14) 42. Rb7+ {[%emt 0:01:48]} (42. Rb4 $1 $18) 42... Kc8 {[%emt 0:01:08] [#]} 43. Rb4 {[%emt 0:01:22]} Rd2 {[%emt 0:01:40]} (43... Ra3 $16) 44. Nf5 $18 {[%emt 0:02:46] Rb6 is the strong threat.} Kc7 {[%emt 0:01:40]} 45. Nd6 {[%emt 0:03:44] Prevents Ne4.} Ne4 $2 {[%emt 0:03:24]} (45... Kd7 {was worth a try.} 46. Rb7+ Ke6) 46. Ke3 {[%emt 0:02:42]} Rxg2 {[%emt 0:00:43]} (46... Ra2 $142 47. Rb7+ (47. Nxe4 Ra3+ 48. Ke2 dxe4 $18) 47... Kc6 48. Rb6+ Kc7 49. Nxe4 Ra3+ 50. Kf2 Ra2+ 51. Ke3 Ra3+ 52. Ke2 dxe4) 47. Nxe4 {[%emt 0:00:04]} dxe4 {[%emt 0:00:08]} 48. Kxe4 {[%emt 0:00:02] KR-KR} g4 {[%emt 0:00:31]} 49. hxg4 {[%emt 0:00:11]} Rxg4+ {[%emt 0:00:07]} 50. Kd5 {[%emt 0:00:33]} h4 {[%emt 0:00:51]} 51. Ra4 $2 {[%emt 0:00:23]} (51. Rb6 $18 Rg5+ 52. Kc4) 51... Rg5+ $11 {[%emt 0:00:09]} 52. Kc4 {[%emt 0:00:06] Threatens to win with Ra7+.} Rh5 $1 {[%emt 0:00:12]} 53. d5 {[%emt 0:03:33] Threatening mate with d6+.} h3 {[%emt 0:00:07]} 54. d6+ {[%emt 0:00:51]} Kb7 $1 {[%emt 0:01:25] ( -> ...Rh4+)} 55. d7 {[%emt 0:00:37]} Rh8 {[%emt 0:00:59]} (55... Kc7 {gets mated.} 56. Ra7+ Kd8 57. c6 Ke7 58. Ra8 Rh4+ 59. Kd3 Rg4 60. d8=Q+ Ke6 61. Qd7+ Ke5 62. Qc7+ Kd5 63. Ra5+ Ke6 64. Qd7+ Kf6 65. Rf5+ Kg6 66. Qf7+ Kh6 67. Rh5#) 56. Ra2 {[%emt 0:02:52] Intending Kb5 and mate.} Kc7 {[%emt 0:01:16]} 57. Ra7+ {[%emt 0:00:10]} Kc6 {[%emt 0:00:10]} 58. d8=Q {[%emt 0:01:28][%csl Gc4][%cal Rd8d5]} Rf8 $2 {[%emt 0:12:34][%mdl 8192]} (58... Rxd8 $11 59. Ra6+ (59. Rh7 Rd1 $11) 59... Kc7) 59. Qe8+ $2 Rxe8 {[%emt 0:00:00]} 60. Rh7 {[%emt 0:00:00]} Rd8 {[%emt 0:00:00] Weighted Error Value: White=0.26 (precise) /Black=0.39} 1/2-1/2

[Event "2nd Serbia Open Masters 2022"]
[Site "Novi Sad"]
[Date "2022.06.29"]
[Round "2.14"]
[White "Narva, Mai"]
[Black "Harsha Bharathakoti"]
[Result "1/2-1/2"]
[ECO "C70"]
[WhiteElo "2385"]
[BlackElo "2547"]
[Annotator "TA"]
[PlyCount "120"]
[EventDate "2022.06.28"]
[EventType "swiss"]
[EventCountry "SRB"]
[SourceTitle "playchess.com"]
[Source "ChessBase"]
[SourceQuality "1"]
[TimeControl "40/5400+30:900+30"]

{[%evp 9,120,65,73,16,137,133,164,168,198,144,166,163,159,146,176,113,127,122,108,58,46,45,52,18,43,25,21,34,27,13,18,0,0,4,22,20,21,23,29,29,29,30,25,14,14,14,14,0,12,10,9,12,10,0,0,0,5,0,11,8,22,0,0,-6,0,-6,0,0,0,-27,0,0,0,0,0,0,0,0,0,0,0,0,0,0,0,0,0,0,9,9,9,0,0,0,0,0,0,0,0,0,0,0,0,0,0,0,0,0,0,0,0,0,0]} 1. e4 {[%emt 0:00:04]} e5 {[%emt 0:06:22]} 2. Nf3 {[%emt 0:00:16]} Nc6 {[%emt 0:00:06]} 3. Bb5 {[%emt 0:00:17]} a6 {[%emt 0:00:06]} 4. Ba4 {[%emt 0:00:14]} f5 {[%emt 0:00:05]} 5. d4 {[%emt 0:12:32]} exd4 {[%emt 0:00:21]} 6. Nxd4 {[%emt 0:07:20] C70: Ruy Lopez: 3...a6 4 Ba4, Norwegian and Delayed Schliemann.} (6. e5 $1 $16) 6... Qh4 {[%emt 0:36:55] [#]} (6... Nxd4 $11 {remains equal.} 7. Qxd4 c5 8. Qe5+ Qe7 9. Qxe7+ (9. Qxf5 b5 $17) 9... Bxe7) 7. Nc3 $146 {[%emt 0:11:35]} (7. Nxf5 Qxe4+ 8. Qe2 Qxe2+ 9. Kxe2 d5 $15) ({Predecessor:} 7. O-O fxe4 8. Nc3 Nf6 9. Nf5 Qg4 10. Qxg4 Nxg4 11. Nxe4 d5 12. Neg3 g6 13. Nd4 Bd7 {0-1 (38) Lecoq,J (2075)-Leygue,D (2278) France 2005}) 7... Bb4 {[%emt 0:03:39] [#]} 8. O-O $1 {[%emt 0:02:02] White is clearly better.} (8. Nxf5 Qxe4+ 9. Qe2 Qxe2+ 10. Kxe2 Bxc3 11. bxc3 d6 $11) 8... Nge7 {[%emt 0:09:04] [#]} 9. Bb3 {[%emt 0:07:59]} ({Don't do} 9. Nxf5 Nxf5 10. g3 (10. exf5 O-O $16) 10... Qh3 $16) (9. Nf3 $1 $18 {[%cal Rf3h4]} Qh5 10. Nd5) 9... Bxc3 {[%emt 0:07:51]} 10. bxc3 {[%emt 0:00:08]} fxe4 {[%emt 0:00:02]} 11. f3 {[%emt 0:16:32] White is more active.} d6 {[%emt 0:25:21]} 12. Re1 {[%emt 0:10:08]} (12. Nxc6 $18 Nxc6 13. Qd5) 12... Nxd4 {[%emt 0:01:24]} 13. Rxe4 {[%emt 0:06:33] Really sharp!} Qf6 {[%emt 0:00:05] ...Ndc6 is the strong threat.} (13... Nxb3 $2 14. Rxh4 Nxa1 15. Bg5 $18) 14. cxd4 {[%emt 0:03:36]} ({White should play} 14. Qxd4 $16 {[%cal Oc1g5] Strongly threatening Bg5!} Kd8 15. Qxf6 gxf6 16. Bh6) 14... Bf5 $14 {[%emt 0:00:05]} 15. Re1 {[%emt 0:18:44]} O-O-O {[%emt 0:00:51]} 16. Rb1 {[%emt 0:00:00]} Nc6 {[%emt 0:03:58]} 17. d5 {[%emt 0:00:00]} Qd4+ {[%emt 0:00:32]} 18. Be3 {[%emt 0:00:00]} Qxd1 {[%emt 0:00:05]} 19. Rbxd1 {[%emt 0:00:00]} Na5 {[%emt 0:00:35]} 20. Bd4 {[%emt 0:00:00]} Nxb3 {[%emt 0:01:03]} 21. cxb3 {[%emt 0:00:00]} Rd7 {[%emt 0:00:39]} 22. g4 {[%emt 0:02:03]} Bg6 {[%emt 0:00:04]} 23. Kg2 {[%emt 0:00:49]} Kd8 {[%emt 0:02:15]} 24. f4 {[%emt 0:01:04][%cal Bf3f4,Bf4f5,Bf5f6][%mdl 32]} Rg8 {[%emt 0:00:30]} 25. f5 {[%emt 0:00:32]} Bf7 {[%emt 0:00:03]} 26. Bc3 {[%emt 0:00:10]} Re7 {[%emt 0:00:27]} 27. Rxe7 {[%emt 0:00:36]} Kxe7 $11 {[%emt 0:00:03][%mdl 4096] Endgame KRB-KRB} 28. Kf3 {[%emt 0:00:43]} g6 {[%emt 0:00:53]} 29. f6+ {[%emt 0:00:31]} Kd7 {[%emt 0:00:04]} 30. g5 {[%emt 0:00:28]} Rh8 {[%emt 0:01:14]} 31. Kg3 {[%emt 0:00:29]} Re8 {[%emt 0:00:31]} 32. Kf3 {[%emt 0:00:21] Prevents Re3+.} a5 {[%emt 0:00:44][%cal Ba6a5,Ba5a4,Ba4a3][%mdl 32]} 33. h4 {[%emt 0:00:40]} Ra8 {[%emt 0:00:21]} 34. Kf4 {[%emt 0:00:31]} a4 {[%emt 0:00:40]} 35. b4 {[%emt 0:00:30]} a3 {[%emt 0:00:28]} 36. Rd3 {[%emt 0:00:29]} Re8 {[%emt 0:00:31]} 37. Bd2 {[%emt 0:00:31]} Re2 {[%emt 0:00:22]} 38. Kf3 {[%emt 0:00:29]} Re5 {[%emt 0:00:30]} 39. Bf4 {[%emt 0:00:29]} Rxd5 {[%emt 0:00:39]} 40. Rxa3 {[%emt 0:00:00] The position is equal.} Rd4 {[%emt 0:00:00]} 41. Re3 {[%emt 0:04:04]} ({Much weaker is} 41. b5 Rb4 $15) 41... Be6 {[%emt 0:04:02]} 42. a3 {[%emt 0:00:24]} b6 {[%emt 0:00:57]} 43. Rc3 {[%emt 0:05:44]} Bd5+ {[%emt 0:04:29]} 44. Kg3 {[%emt 0:00:06]} Be6 {[%emt 0:01:44]} 45. Kf3 {[%emt 0:00:29]} Bd5+ {[%emt 0:00:47]} 46. Kg3 {[%emt 0:00:05]} Rd1 {[%emt 0:02:14]} 47. Re3 {[%emt 0:05:29]} Be6 {[%emt 0:00:05]} 48. Rf3 {[%emt 0:00:50]} c5 {[%emt 0:02:59]} 49. bxc5 {[%emt 0:01:53]} bxc5 {[%emt 0:00:03]} 50. Kf2 {[%emt 0:00:57]} Ra1 {[%emt 0:02:34]} 51. Bd2 {[%emt 0:01:01] And now f7 would win.} Ke8 {[%emt 0:01:06]} (51... Ra2 $5 {[%cal Ra2d2]}) 52. Re3 {[%emt 0:00:27]} Kd7 {[%emt 0:00:04]} 53. Rf3 {[%emt 0:00:04]} Ra2 {[%emt 0:00:56]} 54. Ke1 {[%emt 0:00:23] Hoping for f7.} Ke8 {[%emt 0:00:15]} 55. Re3 {[%emt 0:00:30]} Kd7 {[%emt 0:00:37]} 56. Rf3 {[%emt 0:00:05] aiming for f7.} Ke8 {[%emt 0:00:38]} 57. Re3 {[%emt 0:00:09]} Ra1+ {[%emt 0:00:18]} 58. Kf2 {[%emt 0:00:07]} Kd7 {[%emt 0:00:31]} 59. Rf3 {[%emt 0:00:09] Threatens to win with f7.} Ke8 {[%emt 0:00:17]} 60. Re3 {[%emt 0:00:08]} Kd7 $1 {[%emt 0:00:03] Black defended with fortune.  Weighted Error Value: White=0.07 (flawless) /Black=0.09 (flawless)} 1/2-1/2

[Event "2nd Serbia Open Masters 2022"]
[Site "Novi Sad"]
[Date "2022.06.29"]
[Round "2.15"]
[White "Perunovic, Milos"]
[Black "Roebers, Eline"]
[Result "1-0"]
[ECO "B90"]
[WhiteElo "2544"]
[BlackElo "2369"]
[Annotator "TA"]
[PlyCount "67"]
[EventDate "2022.06.28"]
[EventType "swiss"]
[EventCountry "SRB"]
[SourceTitle "playchess.com"]
[Source "ChessBase"]
[SourceQuality "1"]
[TimeControl "40/5400+30:900+30"]

{[%evp 9,67,27,24,4,20,29,55,0,-4,-10,-16,0,0,0,0,0,26,33,56,-46,-33,-117,-93,-75,-81,-208,83,-63,0,-202,-75,-171,0,-11,24,4,0,0,-5,0,66,72,165,155,188,156,175,171,179,172,197,157,302,284,371,383,493,459,527,447]} 1. e4 {[%emt 0:00:07]} c5 {[%emt 0:00:54]} 2. Nc3 {[%emt 0:00:35]} d6 {[%emt 0:00:14]} 3. Nge2 {[%emt 0:00:51]} Nf6 {[%emt 0:02:09]} 4. d4 {[%emt 0:01:29]} cxd4 {[%emt 0:00:05]} 5. Nxd4 {[%emt 0:00:06]} a6 {[%emt 0:01:13]} 6. Qd3 {[%emt 0:08:22] B90: Sicilian Najdorf: Unusual White 6th moves, 6 Be3 Ng4 and 6 Be3 e5.} e5 {[%emt 0:07:44]} 7. Nf5 {[%emt 0:00:09]} h6 {[%emt 0:20:22] Against Bg5} 8. Be2 {[%emt 0:16:33]} (8. Ne3 $14) 8... Bxf5 $11 {[%emt 0:05:56]} 9. exf5 {[%emt 0:00:30]} d5 {[%emt 0:00:01][%cal Bd6d5,Bd5d4][%mdl 32]} 10. O-O {[%emt 0:06:46]} e4 {[%emt 0:02:28]} 11. Qg3 {[%emt 0:04:22]} Nc6 $36 {[%emt 0:05:34][%mdl 2048] Black has the initiative.} 12. Rd1 {[%emt 0:06:10][%cal Oc3d5] [#] Black must now prevent Nxd5!} d4 $146 {[%emt 0:04:40]} ({Predecessor:} 12... Qa5 13. Bd2 O-O-O 14. Nxe4 Nxe4 15. Bxa5 Nxg3 16. Bxd8 Nxe2+ 17. Kf1 Ned4 18. Bb6 Nxf5 19. Rxd5 {½-½ (40) Bartel,M (2648)-Matuszewski,M (2415) Gorzow Wielkopolski 2014}) 13. Bc4 $1 {[%emt 0:09:38][%cal Oc3e4] Nxe4! is the strong threat.} Qa5 {[%emt 0:03:14] [#]} 14. Ne2 {[%emt 0:01:36]} (14. Nxe4 $1 $14 Nxe4 15. Bxf7+ Kd8 16. Qf4 (16. Qh4+ Nf6 $11)) 14... Rd8 $1 $15 {[%emt 0:02:31]} 15. Qh3 {[%emt 0:07:15]} (15. Bxf7+ $2 Kxf7 16. Qb3+ Qd5 17. Qxb7+ Rd7 $19) (15. b3 $15) 15... Ne5 $1 $17 {[%emt 0:06:40] Pair of Knights!} 16. Bb3 {[%emt 0:01:53]} Bc5 {[%emt 0:10:49]} (16... d3 17. cxd3 Nxd3 18. Nf4 $11) 17. Nf4 {[%emt 0:06:46] Inhibits d3.} (17. Bf4 $17 {was worth a try.} Neg4 18. Ng3) 17... Nfg4 $2 {[%emt 0:07:19] [#]} ({Black should try} 17... e3 $1 $19 {[%cal Re3f2]} 18. Qh4 (18. fxe3 $2 dxe3 19. Rxd8+ Kxd8 $19) 18... O-O) 18. Qh5 {[%emt 0:06:45]} (18. Bxf7+ $1 $16 Kxf7 19. Qb3+ Ke8 20. Qe6+ Be7 21. Ng6) 18... Nf6 {[%emt 0:06:32]} (18... Rd7 $15 19. h3 Nf6) 19. Qh4 $2 {[%emt 0:05:56]} (19. Qh3 $1 $11 {and White has nothing to worry.}) 19... Qb6 {[%emt 0:02:13]} (19... e3 $1 $19 {and Black stays clearly on top. And now ...0-0 would win.} 20. Kh1 O-O) 20. Qg3 {[%emt 0:02:38] [#]} (20. Ba4+ $17 Kf8 21. h3) 20... Qd6 $2 {[%emt 0:07:25]} ({Better is} 20... O-O $1 $19 {Strongly threatening ...e3.} 21. Ne6 fxe6 22. Bxh6 (22. Qxe5 $2 Kh8 $19) 22... Neg4 23. Bxe6+ {[#]} Rf7 $1 {[%mdl 512]}) 21. Re1 {[%emt 0:02:31][%cal Of4d5] Against e3} ({Not} 21. Qxg7 $2 Rg8 22. Qxh6 Neg4 $19) 21... h5 {[%emt 0:01:12] [#]} (21... Kf8 {is more complex.} 22. Nd3 exd3 23. Bf4 d2) 22. Nd3 $1 {[%emt 0:06:43]} Nxd3 {[%emt 0:00:53]} 23. Qxd6 {[%emt 0:00:06]} Bxd6 {[%emt 0:00:51]} 24. cxd3 {[%emt 0:00:02]} e3 {[%emt 0:00:21]} (24... Bb4 $11 25. Rd1 (25. Re2 O-O $15) 25... O-O) 25. fxe3 $14 {[%emt 0:00:08]} Ng4 {[%emt 0:00:40]} (25... Bb4 $16 {was necessary.} 26. Re2 dxe3) 26. exd4+ $18 {[%emt 0:00:35]} Kf8 {[%emt 0:00:07]} 27. h3 {[%emt 0:00:34]} Bh2+ {[%emt 0:01:05]} 28. Kf1 {[%emt 0:00:50]} Nh6 {[%emt 0:00:01]} 29. Bg5 {[%emt 0:01:20]} f6 {[%emt 0:01:01]} 30. Bd2 {[%emt 0:00:56]} Bd6 {[%emt 0:00:44]} (30... Nxf5 $16 31. Bb4+ Bd6) 31. Be6 {[%emt 0:00:38]} Nf7 {[%emt 0:00:15]} 32. Rac1 {[%emt 0:00:10]} Ng5 {[%emt 0:00:13]} 33. Ba5 {[%emt 0:00:37]} Re8 {[%emt 0:00:37]} 34. Bd5 {[%emt 0:01:23] Quite a comeback for White.  Weighted Error Value: White=0.44/Black=0.47} 1-0